[Event "XX Gran Hotel Bali-A 2023"]
[Site "Benidorm"]
[Date "2023.12.03"]
[Round "3.1"]
[White "Grigoryan, Karen H."]
[Black "Mingarro Carceller, Sergi"]
[Result "1-0"]
[ECO "C02"]
[WhiteElo "2646"]
[BlackElo "2253"]
[Annotator "TA"]
[PlyCount "111"]
[EventDate "2023.12.02"]
[EventType "swiss"]
[EventCountry "ESP"]
[SourceTitle "playchess.com"]
[Source "ChessBase"]
[SourceQuality "1"]
[TimeControl "5400+30"]

{[%evp 13,111,0,14,-51,-47,-126,68,68,62,52,63,54,62,68,76,68,82,81,69,76,57,75,91,69,60,65,71,32,35,29,30,35,25,0,7,0,0,0,192,-70,11,12,19,12,88,72,107,106,132,106,105,79,84,41,45,22,102,83,77,85,129,121,244,253,264,238,202,154,543,511,735,735,735,735,735,735,735,735,735,582,735,735,735,735,735,735,735,735,700,563,1368,1195,5522,5060,2876,1366,29975,29975,29966,29964]} 1. e4 {[%emt 0:02:23]} e6 {[%emt 0:00:20]} 2. d4 {[%emt 0:00:17]} d5 {[%emt 0:00:08]} 3. e5 {[%emt 0:00:37]} c5 {[%emt 0:00:14]} 4. c3 {[%emt 0:00:07]} Nc6 {[%emt 0:00:23]} 5. Nf3 {[%emt 0:00:13]} Bd7 {[%emt 0:00:08]} 6. a3 {[%emt 0:00:31]} c4 {[%emt 0:00:56]} 7. g3 {[%emt 0:00:30]} f6 {[%emt 0:04:24] [#]} 8. Bf4 $146 {[%emt 0:07:39] C02: French: Advance Variation.} ({Better is} 8. Bh3 $11) ({Predecessor:} 8. exf6 Nxf6 9. Ne5 Nxe5 10. dxe5 Ne4 11. Be3 Qc7 12. Bd4 Be7 13. Nd2 Nc5 14. Be2 Ba4 15. Qb1 O-O-O {1-0 Sahl,B (2326)-Thogersen,R (2248) DEN-chT 1920 58th 2019 (8.5)}) 8... Qb6 $15 {[%emt 0:08:45]} 9. Qc2 {[%emt 0:02:00]} (9. Ra2 $15) 9... Nh6 $2 {[%emt 0:04:42]} (9... g5 $17 10. Be3 g4) 10. Bxh6 $14 {[%emt 0:03:41] White is slightly better.} gxh6 {[%emt 0:01:10]} 11. exf6 {[%emt 0:00:11]} O-O-O {[%emt 0:00:18]} 12. Nbd2 {[%emt 0:01:14]} Bd6 {[%emt 0:05:07]} 13. Bg2 {[%emt 0:07:44]} Rdf8 {[%emt 0:04:31]} 14. O-O {[%emt 0:03:11]} Rxf6 {[%emt 0:03:39]} 15. b3 {[%emt 0:03:07]} cxb3 {[%emt 0:05:09]} 16. Nxb3 {[%emt 0:00:08]} Rhf8 {[%emt 0:11:27]} 17. Nbd2 {[%emt 0:01:15]} e5 {[%emt 0:09:41]} 18. dxe5 {[%emt 0:04:52]} Bxe5 {[%emt 0:03:10]} 19. Rab1 {[%emt 0:14:19]} Qc5 {[%emt 0:05:07][%csl LRa3,LRc3]} 20. Qb2 {[%emt 0:05:05] Some like it hot} b6 {[%emt 0:01:06]} ({Not} 20... Bxc3 21. Qxb7+ Kd8 22. Rb5 $16 (22. Rbc1 Qxa3 23. Nb1 Qb2 $11)) 21. Rbc1 {[%emt 0:00:40]} Bd6 {[%emt 0:07:31]} 22. c4 {[%emt 0:04:57]} Qxa3 {[%emt 0:03:29]} 23. Qxa3 {[%emt 0:04:14]} (23. Qc2 {keeps more tension.} Nb4 24. Qxh7 Bf5 25. cxd5+ Nc2 26. Rxc2+ Kb8 27. Qg7) 23... Bxa3 {[%emt 0:00:02] This pair of bishops is nice.} 24. cxd5 {[%emt 0:00:33][%mdl 64] Pin} Bxc1 {[%emt 0:00:12]} 25. Rxc1 {[%emt 0:00:10][%mdl 64] Pin} Kb7 $2 {[%emt 0:01:52] [#]} 26. Nc4 $2 {[%emt 0:10:03] [#]} ({Inferior is} 26. dxc6+ Bxc6 27. Re1 (27. Rc3 a5 $15) 27... a5 $15) ({Only move:} 26. Ne4 $1 $18 {[%cal Re4f6]}) 26... b5 {[%emt 0:06:48]} 27. dxc6+ $11 {[%emt 0:01:31]} Bxc6 {[%emt 0:00:05]} 28. Nce5 {[%emt 0:00:45]} Bxf3 {[%emt 0:01:29]} (28... Be4 $11 {keeps the balance.}) 29. Nxf3 $16 {[%emt 0:00:09] Black must now prevent Ne5+.} Kb6 {[%emt 0:01:51]} (29... Rxf3 $2 30. Rc3 $18) 30. Ne5 {[%emt 0:00:36] Nd7+ would be deadly.} Rd8 {[%emt 0:00:12] Wards off Nd7+} 31. Rb1 {[%emt 0:08:43]} Rd4 {[%emt 0:07:42]} 32. f4 {[%emt 0:00:45][%cal Bf2f4,Bf4f5,Bf5f6][%mdl 32]} Rfd6 {[%emt 0:00:43] ...Rd1+ is the strong threat.} 33. Bf1 {[%emt 0:00:27] White is more active.} R6d5 {[%emt 0:01:26]} 34. Nc4+ {[%emt 0:00:32]} Ka6 {[%emt 0:00:25]} (34... Kc6 $1 $11) 35. Ne3 {[%emt 0:01:10]} Rc5 {[%emt 0:00:09]} 36. f5 {[%emt 0:01:02]} Kb6 {[%emt 0:02:00]} 37. f6 {[%emt 0:00:31] And now f7 would win.} a6 {[%emt 0:01:16]} (37... Rd8 $16) 38. Bg2 $18 {[%emt 0:03:23] Strongly threatening f7.} Rd8 {[%emt 0:00:58]} 39. Rf1 {[%emt 0:00:29][%cal Oe3d5] Hoping for Nd5+!} Rf8 {[%emt 0:00:10]} 40. Nd5+ {[%emt 0:00:09]} Kc6 $2 {[%emt 0:00:45] This costs Black the game.} (40... Ka7 $16 {is more resistant.}) 41. Nf4+ {[%emt 0:01:33]} Kd6 {[%emt 0:00:07]} 42. Rd1+ {[%emt 0:00:10]} Ke5 {[%emt 0:00:34]} 43. Nd3+ {[%emt 0:00:08]} Kd4 {[%emt 0:00:06]} 44. Nxc5+ {[%emt 0:00:19]} Kxc5 {[%emt 0:00:02][%mdl 4096] Endgame KRB-KR} 45. Rd5+ {[%emt 0:01:23]} Kc4 {[%emt 0:00:32]} 46. Rd6 {[%emt 0:00:20]} a5 {[%emt 0:00:12]} 47. Bf1+ {[%emt 0:01:09]} Kc5 {[%emt 0:00:27]} 48. Ra6 {[%emt 0:00:09]} b4 {[%emt 0:01:14]} 49. Rxa5+ {[%emt 0:00:08]} Kd4 {[%emt 0:00:02]} 50. Rb5 {[%emt 0:00:27]} Kc3 {[%emt 0:00:13]} 51. Rc5+ {[%emt 0:00:11]} Kb2 {[%emt 0:00:13]} 52. Rf5 {[%emt 0:00:14] Rf3 would kill now.} b3 {[%emt 0:00:20]} 53. Rf3 {[%emt 0:00:26] Threatening mate with Bc4.} Kc2 {[%emt 0:00:37]} 54. Bd3+ {[%emt 0:00:08]} Kd2 {[%emt 0:00:38]} 55. Bxh7 {[%emt 0:00:15]} b2 {[%emt 0:00:14]} 56. f7 {[%emt 0:00:18] Weighted Error Value: White=0.25 (precise) /Black=0.46} 1-0

[Event "XX Gran Hotel Bali-A 2023"]
[Site "Benidorm"]
[Date "2023.12.03"]
[Round "3.2"]
[White "Domingo Nunez, Ruben"]
[Black "Torres Sanchez, Jose"]
[Result "0-1"]
[ECO "B91"]
[WhiteElo "2429"]
[BlackElo "2196"]
[Annotator "RC"]
[PlyCount "104"]
[EventDate "2023.12.02"]
[EventType "swiss"]
[EventCountry "ESP"]
[SourceTitle "playchess.com"]
[Source "ChessBase"]
[SourceQuality "1"]
[TimeControl "5400+30"]

1. e4 {[%emt 0:00:14]} c5 {[%emt 0:00:18]} 2. Nf3 {[%emt 0:00:21]} d6 {[%emt 0:01:00]} 3. d4 {[%emt 0:00:08]} cxd4 {[%emt 0:00:16]} 4. Nxd4 {[%emt 0:00:04]} Nf6 {[%emt 0:00:14]} 5. Nc3 {[%emt 0:00:03]} a6 {[%emt 0:00:11]} 6. a4 {[%emt 0:00:02]} g6 {[%emt 1:31:31]} 7. g3 {[%emt 0:03:18]} Bg7 {[%emt 0:00:00]} 8. Bg2 {[%emt 0:00:04]} O-O {[%emt 0:00:00]} 9. O-O {[%emt 0:01:07]} Bd7 {[%emt 0:00:00]} 10. a5 {[%emt 0:06:50]} Nc6 {[%emt 0:00:00]} 11. Nb3 {[%emt 0:04:30]} Ne5 {[%emt 0:00:00]} 12. f4 {[%emt 0:04:51]} Nc4 {[%emt 0:00:00]} 13. Qe2 {[%emt 0:00:03]} Rc8 {[%emt 0:00:00]} 14. e5 {[%emt 0:11:58]} dxe5 {[%emt 0:00:00]} 15. fxe5 {[%emt 0:07:10]} Ng4 {[%emt 0:00:00]} 16. Bxb7 {[%emt 0:06:08]} Ngxe5 {[%emt 0:00:00]} 17. Bxa6 {[%emt 0:08:46]} Bg4 {[%emt 0:00:00]} 18. Qe4 {[%emt 0:06:48]} Nd6 {[%emt 0:00:00]} 19. Qd5 {[%emt 0:11:45]} Rc6 {[%emt 0:00:00]} 20. Be2 {[%emt 0:00:19]} Rxc3 {[%emt 0:00:00]} 21. Bxg4 {[%emt 0:00:42]} Rxb3 {[%emt 0:00:00]} 22. cxb3 {[%emt 0:01:28]} Nxg4 {[%emt 0:00:00]} 23. a6 {[%emt 0:00:01]} Qa8 {[%emt 0:00:00]} 24. Qxa8 {[%emt 0:00:30]} Re8 {[%emt 0:09:00]} 25. Qb8 Rxb8 {[%emt 0:00:00]} 26. Rf3 {[%emt 0:26:20]} Ra8 27. Rf4 {[%emt 0:00:00]} f5 {[%emt 0:00:00]} 28. Rb4 {[%emt 0:00:00]} Ne5 {[%emt 0:00:00]} 29. Be3 {[%emt 0:00:00]} Kf7 {[%emt 0:00:00]} 30. Kg2 {[%emt 0:00:00]} Nd7 {[%emt 0:00:00]} 31. Ra2 {[%emt 0:00:00]} Bf6 {[%emt 0:00:00]} 32. a7 {[%emt 0:00:00]} Ke6 {[%emt 0:00:00]} 33. Ra6 {[%emt 0:00:00]} Kd5 {[%emt 0:00:00]} 34. Bf4 {[%emt 0:02:39]} e5 {[%emt 0:00:00]} 35. Be3 {[%emt 0:00:03]} Bd8 {[%emt 0:00:00]} 36. Ra1 {[%emt 0:01:09]} g5 {[%emt 0:00:00]} 37. Rd1+ {[%emt 0:00:29]} Ke6 {[%emt 0:00:00]} 38. Ra4 {[%emt 0:00:32]} f4 {[%emt 0:00:00]} 39. Ra6 {[%emt 0:00:53]} Be7 {[%emt 0:00:00]} 40. Bf2 {[%emt 0:00:16]} e4 {[%emt 0:00:00]} 41. Bd4 {[%emt 0:00:03]} Ne5 {[%emt 0:00:00]} 42. b4 {[%emt 0:00:16]} Nd3 {[%emt 0:00:00]} 43. Rb6 {[%emt 0:01:35]} f3+ {[%emt 0:00:00]} 44. Kf1 {[%emt 0:00:05]} Kd5 {[%emt 0:00:00]} 45. Rb8 {[%emt 0:00:44]} Kxd4 {[%emt 0:00:00]} 46. Rxa8 {[%emt 0:00:03]} e3 {[%emt 0:00:00]} 47. Re1 {[%emt 0:01:08]} Ne4 {[%emt 0:00:00]} 48. Rxe3 {[%emt 0:00:34]} Kxe3 {[%emt 0:00:00]} 49. Rf8 {[%emt 0:01:01]} Nd2+ {[%emt 0:00:00]} 50. Kg1 {[%emt 0:00:00]} Bxf8 {[%emt 0:00:00]} 51. a8=Q {[%emt 0:00:00]} f2+ {[%emt 0:00:00]} 52. Kg2 {[%emt 0:00:00]} f1=Q# {[%emt 0:00:00]} 0-1

[Event "XX Gran Hotel Bali-A 2023"]
[Site "Benidorm"]
[Date "2023.12.03"]
[Round "3.3"]
[White "Vignesh B"]
[Black "Moskalenko, Viktor"]
[Result "1/2-1/2"]
[ECO "B08"]
[WhiteElo "2140"]
[BlackElo "2427"]
[Annotator "RC"]
[PlyCount "151"]
[EventDate "2023.12.02"]
[EventType "swiss"]
[EventCountry "ESP"]
[SourceTitle "playchess.com"]
[Source "ChessBase"]
[SourceQuality "1"]
[TimeControl "5400+30"]

1. e4 {[%emt 0:10:55]} g6 {[%emt 0:01:58]} 2. d4 {[%emt 0:00:06]} Bg7 {[%emt 0:00:06]} 3. Nc3 {[%emt 0:00:04]} c6 {[%emt 0:00:23]} 4. Nf3 {[%emt 0:00:22]} d6 {[%emt 0:00:25]} 5. h3 {[%emt 0:01:03]} Nf6 {[%emt 0:01:22]} 6. Bd3 {[%emt 0:00:26]} O-O {[%emt 0:02:37]} 7. O-O {[%emt 0:00:24]} Nbd7 {[%emt 0:07:46]} 8. e5 {[%emt 0:00:55]} dxe5 {[%emt 0:01:06]} 9. dxe5 {[%emt 0:00:15]} Nd5 {[%emt 0:00:17]} 10. e6 {[%emt 0:21:16]} fxe6 {[%emt 0:02:00]} 11. Ne4 {[%emt 0:00:16]} N5f6 {[%emt 0:35:43]} 12. Qe2 {[%emt 0:08:54]} Nxe4 {[%emt 0:04:43]} 13. Bxe4 {[%emt 0:00:07]} Nc5 {[%emt 0:00:30]} 14. Rd1 {[%emt 0:04:07]} Qe8 {[%emt 0:01:12]} 15. c3 {[%emt 0:00:45]} Nxe4 {[%emt 0:00:25]} 16. Qxe4 {[%emt 0:00:05]} Qf7 {[%emt 0:00:08]} 17. Be3 {[%emt 0:02:20]} e5 {[%emt 0:07:10]} 18. Ng5 {[%emt 0:10:32]} Qf6 {[%emt 0:09:41]} 19. Qc4+ {[%emt 0:17:26]} Kh8 {[%emt 0:00:59]} 20. Ne4 {[%emt 0:04:49]} Qe6 {[%emt 0:05:31]} 21. Qb4 {[%emt 0:02:11]} b6 {[%emt 0:04:05]} 22. Ng5 {[%emt 0:01:47]} Qf6 {[%emt 0:00:14]} 23. Ne4 {[%emt 0:00:39]} Qe6 {[%emt 0:04:47]} 24. Ng5 {[%emt 0:03:29]} Qf6 {[%emt 0:01:14]} 25. a4 {[%emt 0:01:38]} h6 {[%emt 0:03:22]} 26. Ne4 {[%emt 0:00:19]} Qf7 {[%emt 0:00:41]} 27. a5 {[%emt 0:00:37]} c5 {[%emt 0:00:19]} 28. Qb5 {[%emt 0:00:33]} Bf5 {[%emt 0:00:57]} 29. Ng3 {[%emt 0:00:34]} Qe8 {[%emt 0:00:46]} 30. Qc4 {[%emt 0:01:25]} Qc6 {[%emt 0:00:38]} 31. b4 {[%emt 0:00:34]} Qe6 {[%emt 0:03:10]} 32. Qxe6 {[%emt 0:04:30]} Bxe6 {[%emt 0:00:01]} 33. axb6 {[%emt 0:01:08]} axb6 {[%emt 0:00:06]} 34. bxc5 {[%emt 0:00:04]} bxc5 {[%emt 0:00:23]} 35. Bxc5 {[%emt 0:00:15]} Rxa1 {[%emt 0:01:36]} 36. Rxa1 {[%emt 0:00:02]} Rc8 {[%emt 0:00:03]} 37. Bb4 {[%emt 0:01:44]} Bd5 {[%emt 0:01:12]} 38. Ra5 {[%emt 0:01:19]} e6 {[%emt 0:00:12]} 39. f3 {[%emt 0:00:05]} h5 {[%emt 0:00:23]} 40. Kf2 {[%emt 0:00:57]} Bh6 {[%emt 0:01:00]} 41. Ne4 {[%emt 0:00:16]} Bg7 {[%emt 0:01:09]} 42. Ra6 {[%emt 0:00:27]} Rc4 {[%emt 0:00:37]} 43. Ng5 {[%emt 0:01:26]} Bf6 {[%emt 0:00:26]} 44. Nxe6 {[%emt 0:00:27]} Bxe6 {[%emt 0:00:09]} 45. Rxe6 {[%emt 0:00:02]} Kg7 {[%emt 0:00:01]} 46. Ke3 {[%emt 0:00:36]} Kf7 {[%emt 0:00:03]} 47. Ra6 {[%emt 0:00:10]} e4 {[%emt 0:00:08]} 48. Ra7+ {[%emt 0:00:41]} Ke6 {[%emt 0:00:26]} 49. Ra6+ {[%emt 0:00:58]} Kf7 {[%emt 0:00:07]} 50. fxe4 {[%emt 0:00:43]} Bxc3 {[%emt 0:00:03]} 51. Bxc3 {[%emt 0:00:37]} Rxc3+ {[%emt 0:00:01]} 52. Kf4 {[%emt 0:00:02]} h4 {[%emt 0:00:54]} 53. Ra7+ {[%emt 0:00:58]} Ke6 {[%emt 0:00:54]} 54. Ra6+ {[%emt 0:00:28]} Kf7 {[%emt 0:00:05]} 55. Ra2 {[%emt 0:00:25]} Rg3 {[%emt 0:00:45]} 56. Ke5 {[%emt 0:00:19]} Ke7 {[%emt 0:01:02]} 57. Ra7+ {[%emt 0:00:07]} Kd8 {[%emt 0:00:18]} 58. Kd6 {[%emt 0:01:07]} Rd3+ {[%emt 0:00:17]} 59. Ke6 {[%emt 0:00:02]} Rd2 {[%emt 0:00:07]} 60. e5 {[%emt 0:00:03]} Rxg2 {[%emt 0:00:10]} 61. Kf6 {[%emt 0:00:01]} Rf2+ {[%emt 0:01:29]} 62. Kxg6 {[%emt 0:01:47]} Rf3 {[%emt 0:00:08]} 63. Ra4 {[%emt 0:00:39]} Rxh3 {[%emt 0:00:23]} 64. Kf7 {[%emt 0:00:05]} Rf3+ {[%emt 0:01:36]} 65. Ke6 {[%emt 0:00:04]} h3 {[%emt 0:00:06]} 66. Ra8+ {[%emt 0:00:13]} Kc7 {[%emt 0:00:06]} 67. Rh8 {[%emt 0:00:04]} Re3 {[%emt 0:00:33]} 68. Kf6 {[%emt 0:00:06]} Kd7 {[%emt 0:00:44]} 69. Rh7+ {[%emt 0:00:08]} Ke8 {[%emt 0:00:29]} 70. Rh4 {[%emt 0:02:38]} Rf3+ {[%emt 0:00:27]} 71. Ke6 {[%emt 0:00:02]} Kf8 {[%emt 0:00:05]} 72. Kd7 {[%emt 0:00:06]} Rd3+ {[%emt 0:00:10]} 73. Ke6 {[%emt 0:00:03]} Rf3 {[%emt 0:01:38]} 74. Kd7 {[%emt 0:00:09]} Rd3+ {[%emt 0:00:05]} 75. Ke6 {[%emt 0:00:04]} Rf3 {[%emt 0:00:06]} 76. Kd7 {[%emt 0:00:06]} 1/2-1/2

[Event "XX Gran Hotel Bali-A 2023"]
[Site "Benidorm"]
[Date "2023.12.03"]
[Round "3.4"]
[White "Sijpkens, Michiel"]
[Black "Decuigniere, Tom"]
[Result "1/2-1/2"]
[ECO "D37"]
[WhiteElo "2165"]
[BlackElo "2408"]
[Annotator "RC"]
[PlyCount "69"]
[EventDate "2023.12.02"]
[EventType "swiss"]
[EventCountry "ESP"]
[SourceTitle "playchess.com"]
[Source "ChessBase"]
[SourceQuality "1"]
[TimeControl "5400+30"]

1. d4 {[%emt 0:04:12]} d5 {[%emt 0:00:12]} 2. c4 {[%emt 0:00:12]} e6 {[%emt 0:00:07]} 3. Nc3 {[%emt 0:00:12]} Be7 {[%emt 0:00:25]} 4. Nf3 {[%emt 0:00:41]} Nf6 {[%emt 0:00:17]} 5. e3 {[%emt 0:01:59]} O-O {[%emt 0:01:46]} 6. b3 {[%emt 0:01:54]} b6 {[%emt 0:05:24]} 7. cxd5 {[%emt 0:02:04]} exd5 {[%emt 0:01:21]} 8. g3 {[%emt 0:04:29]} c5 {[%emt 0:07:12]} 9. Bg2 {[%emt 0:01:27]} Ba6 {[%emt 0:02:33]} 10. Ne2 {[%emt 0:00:47]} Nc6 {[%emt 0:03:49]} 11. Bb2 {[%emt 0:10:40]} cxd4 {[%emt 0:02:27]} 12. Nfxd4 {[%emt 0:01:19]} Bb4+ {[%emt 0:06:25]} 13. Bc3 {[%emt 0:00:52]} Nxd4 {[%emt 0:07:14]} 14. Qxd4 {[%emt 0:00:39]} Bc5 {[%emt 0:03:54]} 15. Qa4 {[%emt 0:03:34]} Bxe2 {[%emt 0:09:18]} 16. Kxe2 {[%emt 0:00:11]} Rc8 {[%emt 0:02:32]} 17. Rac1 {[%emt 0:09:07]} Qe7 {[%emt 0:02:54]} 18. Qh4 {[%emt 0:04:22]} d4 {[%emt 0:04:20]} 19. Bxd4 {[%emt 0:00:59]} Bxd4 {[%emt 0:00:09]} 20. Qxd4 {[%emt 0:00:30]} Qa3 {[%emt 0:01:28]} 21. Rxc8 {[%emt 0:03:06]} Rxc8 {[%emt 0:00:48]} 22. Rd1 {[%emt 0:00:36]} Qxa2+ {[%emt 0:02:06]} 23. Rd2 {[%emt 0:00:49]} Qa6+ {[%emt 0:00:07]} 24. Qd3 {[%emt 0:01:23]} Qxd3+ {[%emt 0:00:05]} 25. Rxd3 {[%emt 0:05:12]} Kf8 {[%emt 0:00:06]} 26. e4 {[%emt 0:01:10]} Rc2+ {[%emt 0:03:06]} 27. Kf3 {[%emt 0:01:06]} Ke7 {[%emt 0:01:12]} 28. Bh3 {[%emt 0:06:45]} h5 {[%emt 0:00:04]} 29. b4 {[%emt 0:06:12]} Rc4 {[%emt 0:04:56]} 30. Ra3 {[%emt 0:05:13]} Rxb4 {[%emt 0:04:13]} 31. Rxa7+ {[%emt 0:00:19]} Kf8 {[%emt 0:00:04]} 32. Ra8+ {[%emt 0:00:37]} Ke7 {[%emt 0:00:04]} 33. Ra7+ {[%emt 0:00:18]} Kf8 {[%emt 0:00:14]} 34. Ra8+ {[%emt 0:00:41]} Ke7 {[%emt 0:00:04]} 35. Ra7+ {[%emt 0:00:55]} 1/2-1/2

[Event "XX Gran Hotel Bali-A 2023"]
[Site "Benidorm"]
[Date "2023.12.03"]
[Round "3.5"]
[White "Trigo Urquijo, Sergio"]
[Black "Iglesias Ferreira, Andres"]
[Result "1-0"]
[ECO "D26"]
[WhiteElo "2400"]
[BlackElo "2187"]
[Annotator "RC"]
[PlyCount "131"]
[EventDate "2023.12.02"]
[EventType "swiss"]
[EventCountry "ESP"]
[SourceTitle "playchess.com"]
[Source "ChessBase"]
[SourceQuality "1"]
[TimeControl "5400+30"]

1. d4 {[%emt 0:00:03]} d5 {[%emt 0:10:09]} 2. c4 {[%emt 0:00:53]} dxc4 {[%emt 0:00:58]} 3. Nf3 {[%emt 0:00:41]} Nf6 {[%emt 0:00:26]} 4. e3 {[%emt 0:00:30]} e6 {[%emt 0:00:10]} 5. Bxc4 {[%emt 0:00:48]} c5 {[%emt 0:00:13]} 6. Qe2 {[%emt 0:00:45]} a6 {[%emt 0:00:31]} 7. dxc5 {[%emt 0:00:42]} Bxc5 {[%emt 0:00:11]} 8. O-O {[%emt 0:01:03]} Nbd7 {[%emt 0:03:15]} 9. e4 {[%emt 0:04:50]} b5 {[%emt 0:02:06]} 10. Bd3 {[%emt 0:01:02]} Bb7 {[%emt 0:00:50]} 11. a4 {[%emt 0:03:21]} O-O {[%emt 0:08:31]} 12. axb5 {[%emt 0:12:32]} axb5 {[%emt 0:01:00]} 13. Rxa8 {[%emt 0:00:16]} Qxa8 {[%emt 0:00:09]} 14. Nbd2 {[%emt 0:04:48]} Qb8 {[%emt 0:13:16]} 15. e5 {[%emt 0:14:24]} Nd5 {[%emt 0:17:01]} 16. Nb3 {[%emt 0:14:12]} Be7 {[%emt 0:08:56]} 17. Bxb5 {[%emt 0:00:19]} Rd8 {[%emt 0:03:35]} 18. Na5 {[%emt 0:02:03]} Nc5 {[%emt 0:01:59]} 19. Nxb7 {[%emt 0:09:54]} Qxb7 {[%emt 0:00:11]} 20. Bc4 {[%emt 0:02:19]} Nb6 {[%emt 0:06:59]} 21. Ba2 {[%emt 0:02:53]} Nba4 {[%emt 0:02:20]} 22. Bb1 {[%emt 0:23:12]} Rb8 {[%emt 0:06:45]} 23. Ng5 {[%emt 0:00:00]} Bxg5 {[%emt 0:03:03]} 24. Bxg5 {[%emt 0:00:00]} Qxb2 {[%emt 0:01:18]} 25. Qxb2 {[%emt 0:00:00]} Nxb2 {[%emt 0:01:58]} 26. Be7 {[%emt 0:00:00]} Nca4 {[%emt 0:04:59]} 27. Rc1 {[%emt 0:00:00]} Nc4 {[%emt 0:01:44]} 28. f4 {[%emt 0:00:00]} Nab6 {[%emt 0:00:24]} 29. Bc5 {[%emt 0:00:00]} Rc8 {[%emt 0:00:29]} 30. Bd4 {[%emt 0:00:00]} Rd8 {[%emt 0:00:28]} 31. Bf2 {[%emt 0:00:00]} g6 {[%emt 0:01:29]} 32. g3 {[%emt 0:00:00]} Kg7 {[%emt 0:00:11]} 33. Ba2 {[%emt 0:00:00]} Rc8 {[%emt 0:00:11]} 34. Kg2 {[%emt 0:00:00]} h5 {[%emt 0:00:36]} 35. Bb3 {[%emt 0:00:58]} Nd2 {[%emt 0:00:57]} 36. Rxc8 {[%emt 0:00:11]} Nxc8 {[%emt 0:00:05]} 37. Ba2 {[%emt 0:00:24]} Ne4 {[%emt 0:00:45]} 38. Bd4 {[%emt 0:00:15]} Ne7 {[%emt 0:00:20]} 39. Kf3 {[%emt 0:01:10]} Nd2+ {[%emt 0:00:15]} 40. Ke2 {[%emt 0:00:15]} Nf5 {[%emt 0:01:05]} 41. Bg1 {[%emt 0:01:12]} Ne4 {[%emt 0:00:16]} 42. Kd3 {[%emt 0:00:21]} Nexg3 {[%emt 0:00:20]} 43. hxg3 {[%emt 0:00:05]} Nxg3 {[%emt 0:00:05]} 44. Ke3 {[%emt 0:00:31]} Nf5+ {[%emt 0:00:10]} 45. Kf3 {[%emt 0:00:14]} Kh6 {[%emt 0:00:37]} 46. Bb1 {[%emt 0:01:12]} Ne7 {[%emt 0:00:29]} 47. Bc5 {[%emt 0:00:14]} Nd5 {[%emt 0:00:17]} 48. Bf8+ {[%emt 0:00:40]} Kh7 {[%emt 0:00:06]} 49. Be4 {[%emt 0:00:13]} Nb6 {[%emt 0:01:55]} 50. Bc5 {[%emt 0:00:30]} Nd7 {[%emt 0:00:14]} 51. Bd4 {[%emt 0:00:29]} Kh6 {[%emt 0:00:25]} 52. Kg3 {[%emt 0:01:27]} Nf8 {[%emt 0:00:35]} 53. Bc5 {[%emt 0:00:32]} Nh7 {[%emt 0:00:31]} 54. Kh4 {[%emt 0:01:08]} Kg7 {[%emt 0:00:25]} 55. Be7 {[%emt 0:00:36]} Kh6 {[%emt 0:00:47]} 56. Bf6 {[%emt 0:00:33]} Nf8 {[%emt 0:00:18]} 57. Bc6 {[%emt 0:00:10]} Kh7 {[%emt 0:00:26]} 58. Be7 {[%emt 0:00:52]} Kg7 {[%emt 0:00:48]} 59. Bxf8+ {[%emt 0:00:07]} Kxf8 {[%emt 0:00:04]} 60. Kg5 {[%emt 0:00:06]} Kg7 {[%emt 0:00:19]} 61. Bb5 {[%emt 0:00:17]} Kg8 {[%emt 0:00:56]} 62. Kf6 {[%emt 0:00:11]} Kf8 {[%emt 0:00:08]} 63. Bc6 {[%emt 0:00:32]} h4 {[%emt 0:00:57]} 64. Bg2 {[%emt 0:00:29]} Kg8 {[%emt 0:00:11]} 65. Kg5 {[%emt 0:00:34]} Kg7 {[%emt 0:00:05]} 66. Bh3 {[%emt 0:00:14]} 1-0

[Event "XX Gran Hotel Bali-A 2023"]
[Site "Benidorm"]
[Date "2023.12.03"]
[Round "3.6"]
[White "Atienza Alvarez, Javier"]
[Black "Davtyan, David Arm."]
[Result "1/2-1/2"]
[ECO "D28"]
[WhiteElo "2105"]
[BlackElo "2362"]
[Annotator "RC"]
[PlyCount "39"]
[EventDate "2023.12.02"]
[EventType "swiss"]
[EventCountry "ESP"]
[SourceTitle "playchess.com"]
[Source "ChessBase"]
[SourceQuality "1"]
[TimeControl "5400+30"]

1. d4 {[%emt 0:07:40]} d5 {[%emt 0:00:54]} 2. Nf3 {[%emt 0:00:07]} Nf6 {[%emt 0:00:34]} 3. c4 {[%emt 0:00:03]} dxc4 {[%emt 0:00:18]} 4. e3 {[%emt 0:00:11]} e6 {[%emt 0:00:51]} 5. Bxc4 {[%emt 0:01:18]} a6 {[%emt 0:00:18]} 6. O-O {[%emt 0:00:07]} c5 {[%emt 0:00:13]} 7. Qe2 {[%emt 0:00:28]} Nbd7 {[%emt 0:06:58]} 8. Rd1 {[%emt 0:01:46]} Qc7 {[%emt 0:01:57]} 9. a4 {[%emt 0:09:05]} b6 {[%emt 0:02:01]} 10. b3 {[%emt 0:03:12]} Bb7 {[%emt 0:00:22]} 11. Bb2 {[%emt 0:00:40]} Bd6 {[%emt 0:02:23]} 12. Nbd2 {[%emt 0:15:50]} O-O {[%emt 0:07:01]} 13. e4 {[%emt 0:03:06]} cxd4 {[%emt 0:03:33]} 14. Rac1 {[%emt 0:02:05]} Qb8 {[%emt 0:01:14]} 15. Bxd4 {[%emt 0:22:23]} e5 {[%emt 0:00:07]} 16. Bb2 {[%emt 0:00:26]} Nc5 {[%emt 0:00:07]} 17. Bd3 {[%emt 0:01:33]} Nxd3 {[%emt 0:07:00]} 18. Qxd3 {[%emt 0:00:05]} Rd8 {[%emt 0:04:33]} 19. Qe3 {[%emt 0:05:00]} Bc5 {[%emt 0:09:15]} 20. Qg5 {[%emt 0:00:06]} 1/2-1/2

[Event "XX Gran Hotel Bali-A 2023"]
[Site "Benidorm"]
[Date "2023.12.03"]
[Round "3.7"]
[White "Campora, Daniel H."]
[Black "Ni, Viktorija"]
[Result "1-0"]
[ECO "B47"]
[WhiteElo "2341"]
[BlackElo "2139"]
[Annotator "RC"]
[PlyCount "53"]
[EventDate "2023.12.02"]
[EventType "swiss"]
[EventCountry "ESP"]
[SourceTitle "playchess.com"]
[Source "ChessBase"]
[SourceQuality "1"]
[TimeControl "5400+30"]

1. e4 {[%emt 0:00:05]} c5 {[%emt 1:31:00]} 2. Nf3 {[%emt 0:00:08]} e6 {[%emt 0:00:00]} 3. Nc3 {[%emt 0:02:45]} Nc6 {[%emt 0:00:00]} 4. d4 {[%emt 0:00:59]} cxd4 {[%emt 0:00:00]} 5. Nxd4 {[%emt 0:00:06]} Qc7 {[%emt 0:00:00]} 6. g3 {[%emt 0:02:19]} a6 {[%emt 0:00:00]} 7. Bg2 {[%emt 0:00:23]} Nf6 {[%emt 0:00:00]} 8. O-O {[%emt 0:00:34]} Nxd4 {[%emt 0:00:00]} 9. Qxd4 {[%emt 0:00:34]} Bc5 {[%emt 0:00:00]} 10. Bf4 {[%emt 0:02:08]} d6 {[%emt 0:00:00]} 11. Qd2 {[%emt 0:00:32]} h6 {[%emt 0:00:00]} 12. Rad1 {[%emt 0:05:25]} e5 {[%emt 0:00:00]} 13. Be3 {[%emt 0:00:07]} Bxe3 {[%emt 0:00:00]} 14. fxe3 {[%emt 1:21:25]} Be6 {[%emt 0:00:00]} 15. Qxd6 {[%emt 0:00:00]} Qxd6 {[%emt 0:00:00]} 16. Rxd6 {[%emt 0:00:00]} Ke7 {[%emt 0:00:00]} 17. Rb6 {[%emt 0:00:00]} Rab8 {[%emt 0:00:00]} 18. Nd5+ {[%emt 0:00:00]} Bxd5 {[%emt 0:00:00]} 19. exd5 {[%emt 0:00:00]} Rhd8 {[%emt 0:00:00]} 20. c4 {[%emt 0:00:00]} Rd6 {[%emt 0:00:00]} 21. Rb3 {[%emt 0:00:00]} e4 {[%emt 0:00:00]} 22. Rf4 {[%emt 0:00:00]} Rd7 {[%emt 0:00:00]} 23. Bxe4 {[%emt 0:00:00]} g5 {[%emt 0:02:57]} 24. Rf5 {[%emt 0:00:00]} Nxe4 {[%emt 0:07:50]} 25. Re5+ {[%emt 0:00:00]} Kd6 {[%emt 0:00:25]} 26. Rxe4 {[%emt 0:00:00]} Kc5 {[%emt 0:00:39]} 27. Rc3 {[%emt 0:00:00]} 1-0